bitfinex/quotes_BTCUSD_20250709
["timestamp","ask_amount","ask_price","bid_price","bid_amount"]
[1752097529699,0.39551929,111190.0,111180.0,0.58156697]
[1752097529821,0.39551937,111190.0,111180.0,0.58156697]
[1752097530025,0.386526,111190.0,111180.0,0.58156697]
[1752097530233,0.37439288,111190.0,111180.0,0.58364697]
[1752097530518,0.36544,111190.0,111180.0,0.61935697]
[1752097530724,0.36644,111190.0,111180.0,0.61935697]
[1752097531131,0.36636,111190.0,111180.0,0.61935697]
[1752097532700,0.21852,111190.0,111180.0,0.61634697]
[1752097532896,0.36636,111190.0,111180.0,0.61634697]
[1752097533508,0.36636,111190.0,111180.0,0.61935697]
[1752097534140,0.36636,111190.0,111180.0,0.61934371]
[1752097534381,0.37535288,111190.0,111180.0,0.61633371]
[1752097534719,0.37849288,111190.0,111180.0,0.58155371]
[1752097534983,0.3695,111190.0,111180.0,0.58363371]
[1752097535240,0.38434617,111190.0,111180.0,0.58363371]
[1752097535412,0.31636,111190.0,111180.0,0.60003371]
[1752097535615,0.33434608,111190.0,111180.0,0.60003371]
[1752097535847,0.16852,111190.0,111180.0,0.61633371]
[1752097536048,0.32535296,111190.0,111180.0,0.61633371]
[1752097536493,0.31636,111190.0,111180.0,0.61633371]
[1752097536897,0.16852,111190.0,111180.0,0.92224723]
[1752097537101,0.32535288,111190.0,111180.0,0.92224723]
[1752097537393,0.31636,111190.0,111180.0,0.92224723]
[1752097537627,0.31636,111190.0,111180.0,0.92525723]
[1752097537837,0.32535288,111190.0,111180.0,0.92525723]
[1752097538037,0.33452617,111190.0,111180.0,0.88746723]
[1752097538241,0.34351921,111190.0,111180.0,0.88954723]
[1752097538757,0.35251258,111190.0,111180.0,0.88954723]
[1752097539167,0.34351904,111190.0,111180.0,0.88954723]
[1752097539373,0.35251233,111190.0,111180.0,0.88954723]
[1752097539777,0.35251233,111190.0,111180.0,0.8728595]
[1752097540181,0.32503304,111190.0,111180.0,0.8728595]
[1752097540386,0.33714633,111190.0,111180.0,0.8707795]
[1752097540793,0.33714633,111190.0,111180.0,0.8728995]
[1752097541625,0.33714625,111190.0,111180.0,0.8728995]
[1752097541829,0.34613962,111190.0,111180.0,0.8728995]
[1752097542041,0.34613962,111190.0,111180.0,0.56697902]
[1752097542258,0.02113803,111180.0,111170.0,0.18889972]
[1752097542471,0.3642869,111180.0,111170.0,0.17990465]
[1752097542668,0.3793869,111180.0,111170.0,0.17990465]
[1752097542844,0.37039272,111180.0,111170.0,0.17990465]
[1752097543300,0.02719422,111170.0,111160.0,0.86181854]
[1752097543502,0.02110924,111170.0,111160.0,0.86195931]
[1752097543709,0.02110924,111170.0,111160.0,0.86407931]
[1752097543913,0.03010414,111170.0,111160.0,0.86407931]
[1752097544299,0.02110924,111170.0,111160.0,0.86195931]
[1752097544675,0.0121145,111170.0,111160.0,0.86195931]
[1752097544883,0.02110916,111170.0,111160.0,0.86195931]
[1752097545085,0.20534269,111180.0,111170.0,0.19789486]
[1752097545294,0.20747269,111180.0,111170.0,0.50381543]
[1752097545451,0.38736115,111180.0,111170.0,0.18889988]
[1752097545657,0.38837115,111180.0,111170.0,0.18889988]
[1752097545895,0.37937714,111180.0,111170.0,0.17990465]
[1752097546070,0.37038288,111180.0,111170.0,0.17990465]
[1752097547275,0.1815,111180.0,111170.0,0.18889988]
[1752097547492,0.20848228,111180.0,111170.0,0.51281049]
[1752097547687,0.20848228,111180.0,111170.0,0.2068901]
[1752097548090,0.38837074,111180.0,111170.0,0.18889988]
[1752097548423,0.38837074,111180.0,111170.0,0.19661712]
[1752097548742,0.38837074,111180.0,111170.0,0.20561219]
[1752097549159,0.20848228,111180.0,111170.0,0.21460709]
[1752097549415,0.19258228,111180.0,111170.0,0.21460709]
[1752097549635,0.16848794,111180.0,111170.0,0.21460709]
[1752097549852,0.1764722,111180.0,111170.0,0.21460709]
[1752097550090,0.1774822,111180.0,111170.0,0.21460709]
[1752097550360,0.11239391,111190.0,111170.0,0.53164223]
[1752097550574,0.2338641,111200.0,111190.0,0.19997911]
[1752097550813,0.38944625,111200.0,111190.0,0.54060216]
[1752097551010,0.23285385,111200.0,111190.0,0.54060216]
[1752097551147,0.38940608,111200.0,111190.0,0.23468168]
[1752097551603,0.25083848,111200.0,111190.0,0.53160912]
[1752097551807,0.39626848,111200.0,111190.0,0.54060216]
[1752097551973,0.23971608,111200.0,111190.0,0.54060216]
[1752097552174,0.2227317,111200.0,111190.0,0.54060216]
[1752097552413,0.3692117,111200.0,111190.0,0.54060216]
[1752097552868,0.37872377,111200.0,111190.0,0.55710216]
[1752097553275,0.3697317,111200.0,111190.0,0.55710216]
[1752097553727,0.38190377,111200.0,111190.0,0.54060216]
[1752097554032,0.37890377,111200.0,111190.0,0.54060216]
[1752097554277,0.38789592,111200.0,111190.0,0.54060216]
[1752097554587,0.3699117,111200.0,111190.0,0.54060216]
[1752097555244,0.3699117,111200.0,111190.0,0.23468168]
[1752097555459,0.40882153,111200.0,111190.0,0.01883641]
[1752097555658,0.39982865,111200.0,111190.0,0.02108481]
[1752097556283,0.57069293,111200.0,111190.0,0.02108481]
[1752097556905,0.56170045,111200.0,111190.0,0.01896481]
[1752097557318,0.56170045,111200.0,111190.0,0.01671641]
[1752097557521,0.59370045,111200.0,111190.0,0.01671641]
[1752097557728,0.99105786,111200.0,111190.0,0.01671641]
[1752097558567,0.99205786,111200.0,111190.0,0.01671641]
[1752097558945,0.68613738,111200.0,111190.0,0.01671641]
[1752097559174,0.99205786,111200.0,111190.0,0.01671641]
[1752097559351,0.99105786,111200.0,111190.0,0.01671641]
[1752097559903,0.68513738,111200.0,111190.0,0.01671641]
[1752097560103,0.99205786,111200.0,111190.0,0.01671641]
[1752097560493,0.68513738,111200.0,111190.0,0.01671641]
[1752097560724,0.99405786,111200.0,111190.0,0.01671641]
[1752097560903,1.00693179,111200.0,111190.0,0.01671641]
[1752097561046,1.00793179,111200.0,111190.0,0.01671641]
[1752097561665,0.68913738,111200.0,111190.0,0.01671641]
[1752097561861,1.00793179,111200.0,111190.0,0.01671641]
[1752097562864,1.03495379,111200.0,111190.0,0.01671641]
[1752097564371,0.71615938,111200.0,111190.0,0.01671641]
[1752097564770,1.03495379,111200.0,111190.0,0.01671641]
[1752097565616,0.71615938,111200.0,111190.0,0.01671641]
[1752097565804,1.03495379,111200.0,111190.0,0.01671641]
[1752097567365,0.19789454,111170.0,111160.0,0.35125119]
[1752097567566,0.34573454,111170.0,111160.0,0.36797645]
[1752097567773,0.34573454,111170.0,111160.0,0.54789728]
[1752097568390,0.34573454,111170.0,111160.0,0.36797645]
[1752097568624,0.34573454,111170.0,111160.0,0.36897645]
[1752097568834,0.34573454,111170.0,111160.0,0.38627645]
[1752097569792,0.34573454,111170.0,111160.0,0.57519332]
[1752097570811,0.34573454,111170.0,111160.0,0.39527249]
[1752097571395,0.19789454,111170.0,111160.0,0.39527249]
[1752097571602,0.34565454,111170.0,111160.0,0.38627645]
[1752097576164,0.34565454,111170.0,111160.0,0.36997645]
[1752097576562,0.34565454,111170.0,111160.0,0.38507645]
[1752097581220,0.34565454,111170.0,111160.0,0.36997645]
[1752097581985,0.34877454,111170.0,111160.0,0.35325119]
[1752097582204,0.34877454,111170.0,111160.0,0.36997758]
[1752097585052,0.34877454,111170.0,111160.0,0.36998776]
[1752097588989,0.29877454,111170.0,111160.0,0.36998776]
[1752097589196,0.31676443,111170.0,111160.0,0.36998776]
[1752097589517,0.31676443,111170.0,111160.0,0.54990859]
[1752097589717,0.31676443,111170.0,111160.0,0.55890455]
[1752097589874,0.31364443,111170.0,111160.0,0.55890455]
[1752097590074,0.31364443,111170.0,111160.0,0.58400042]
[1752097590782,0.31364443,111170.0,111160.0,0.58403642]
[1752097590985,0.31364443,111170.0,111160.0,0.59303221]
[1752097591566,0.34454443,111170.0,111160.0,0.36790376]
[1752097591766,0.74518432,111170.0,111160.0,0.35891334]
[1752097591989,0.43912136,111170.0,111160.0,0.35891334]
[1752097592599,0.43912136,111170.0,111160.0,0.01891334]
[1752097592802,0.74518432,111170.0,111160.0,0.01891334]
[1752097593302,0.43912136,111170.0,111160.0,0.01891334]
[1752097593501,0.74518432,111170.0,111160.0,0.01891334]
[1752097593677,0.74518432,111170.0,111160.0,0.01791334]
[1752097593905,0.43912136,111170.0,111160.0,0.01791334]
[1752097594101,0.74518432,111170.0,111160.0,0.01791334]
[1752097594600,0.74518432,111170.0,111160.0,0.01691334]
[1752097595185,0.43912136,111170.0,111160.0,0.01691334]
[1752097595390,0.74518432,111170.0,111160.0,0.01691334]
[1752097595593,0.43912136,111170.0,111160.0,0.01691334]
[1752097595826,0.42372136,111170.0,111160.0,0.01691334]
[1752097596027,0.0211294,111170.0,111160.0,0.57474915]
[1752097596228,0.1605745,111170.0,111160.0,0.91250014]
[1752097596620,0.04497072,111180.0,111170.0,0.2090096]
[1752097596793,0.19349072,111180.0,111170.0,0.24186861]
[1752097597161,0.18449638,111180.0,111170.0,0.24186861]
[1752097597366,0.01798794,111180.0,111170.0,0.26414327]
[1752097597567,0.16650794,111180.0,111170.0,0.57232623]
[1752097597770,0.16750794,111180.0,111170.0,0.26626327]
[1752097597981,0.17875523,111180.0,111170.0,0.25726861]
[1752097598190,0.17875523,111180.0,111170.0,0.25726869]
[1752097598424,0.16750794,111180.0,111170.0,0.26626351]
[1752097598628,0.16750794,111180.0,111170.0,0.58132113]
[1752097598848,0.16750794,111180.0,111170.0,0.27525817]
[1752097599248,0.01898794,111180.0,111170.0,0.27525817]
[1752097599449,0.16770794,111180.0,111170.0,0.27525817]
[1752097599869,0.16770794,111180.0,111170.0,0.27525825]
[1752097600171,0.16770794,111180.0,111170.0,0.27525768]
[1752097600378,0.1777022,111180.0,111170.0,0.26615302]
[1752097600581,0.0289822,111180.0,111170.0,0.26919302]
[1752097600796,0.16890794,111180.0,111170.0,0.57525598]
[1752097600968,0.1779022,111180.0,111170.0,0.26019828]
[1752097601198,0.1779022,111180.0,111170.0,0.5752559]
[1752097601400,0.17790212,111180.0,111170.0,0.5752559]
[1752097601609,0.002,111180.0,111170.0,0.5752559]
[1752097601832,0.002,111180.0,111170.0,1.00669283]
[1752097602028,0.1514,111180.0,111170.0,1.00669283]
[1752097602425,0.15136,111180.0,111170.0,1.00669462]
[1752097602640,0.15036,111180.0,111170.0,1.00669462]
[1752097602841,0.15036,111180.0,111170.0,0.70163166]
[1752097603190,0.15036,111180.0,111170.0,1.00769462]
[1752097603398,0.14936,111180.0,111170.0,0.80852005]
[1752097603619,0.14936,111180.0,111170.0,1.11558301]
[1752097603823,0.14936,111180.0,111170.0,1.00869462]
[1752097604025,0.14936,111180.0,111170.0,1.11558301]
[1752097604433,0.14936,111180.0,111170.0,1.00869462]
[1752097605049,0.14936,111180.0,111170.0,0.70263166]
[1752097605271,0.14936,111180.0,111170.0,1.00869462]
[1752097605489,0.14936,111180.0,111170.0,0.9919339]
[1752097605784,0.14936,111180.0,111170.0,1.00868838]
[1752097608260,0.16734778,111180.0,111170.0,1.00868838]
[1752097608702,0.15835377,111180.0,111170.0,1.00868828]
[1752097609347,0.17634196,111180.0,111170.0,0.88271135]
[1752097609549,0.18533622,111180.0,111170.0,0.88271135]
[1752097609829,0.35937132,111180.0,111170.0,0.53865903]
[1752097610046,0.38157714,111180.0,111170.0,0.01875438]
[1752097610269,0.38157714,111180.0,111170.0,0.51875438]
[1752097611613,0.33157714,111180.0,111170.0,0.20765827]
[1752097611831,0.33157714,111180.0,111170.0,0.20765835]
[1752097612041,0.32258288,111180.0,111170.0,0.19866312]
[1752097612663,0.31358846,111180.0,111170.0,0.19866312]
[1752097612871,0.31358846,111180.0,111170.0,0.01875847]
[1752097613109,0.31358846,111180.0,111170.0,0.19866312]
[1752097613317,0.1337,111180.0,111170.0,0.20765819]
[1752097613590,0.2972369,111180.0,111170.0,0.20067312]
[1752097613825,0.3003769,111180.0,111170.0,0.20966835]
[1752097614232,0.29138272,111180.0,111170.0,0.19866312]
[1752097614439,0.29138272,111180.0,111170.0,0.19866275]
[1752097615890,0.29138272,111180.0,111170.0,0.20765798]
[1752097616675,0.29138272,111180.0,111170.0,0.19866275]
[1752097617095,0.28238846,111180.0,111170.0,0.19866275]
[1752097617297,0.31398846,111180.0,111170.0,0.0187581]
[1752097617684,0.31084846,111180.0,111170.0,0.0187581]
[1752097617920,0.31398846,111180.0,111170.0,0.19866275]
[1752097618124,0.33197624,111180.0,111170.0,0.2166528]
[1752097618333,0.16108204,111180.0,111170.0,0.22564778]
[1752097618541,0.17007646,111180.0,111170.0,0.21665288]
[1752097618716,0.17007646,111180.0,111170.0,0.22564795]
[1752097618972,0.33393009,111180.0,111170.0,0.19866275]
[1752097619172,0.32268288,111180.0,111170.0,0.19866275]
[1752097620177,0.32268288,111180.0,111170.0,0.19866591]
[1752097620378,0.32268288,111180.0,111170.0,0.01876126]
[1752097621155,0.32268288,111180.0,111170.0,0.19866591]
[1752097621930,0.30728288,111180.0,111170.0,0.19866591]
[1752097623018,0.32248288,111180.0,111170.0,0.19866591]
[1752097624069,0.30618288,111180.0,111170.0,0.19866591]
[1752097624283,0.30728288,111180.0,111170.0,0.19866591]
[1752097624477,0.30728288,111180.0,111170.0,0.20766106]
[1752097625092,0.30728288,111180.0,111170.0,0.19866591]
[1752097625291,0.30728288,111180.0,111170.0,0.20766114]
[1752097625508,0.30728288,111180.0,111170.0,0.19866591]
[1752097626828,0.30728288,111180.0,111170.0,0.20766114]
[1752097627607,0.30414288,111180.0,111170.0,0.20766114]
[1752097627847,0.30728288,111180.0,111170.0,0.20766114]
[1752097628068,0.29138288,111180.0,111170.0,0.20766114]
[1752097629022,0.29138288,111180.0,111170.0,0.21665629]
[1752097630491,0.29136288,111180.0,111170.0,0.21866629]
[1752097630841,0.28824288,111180.0,111170.0,0.24266136]
[1752097631043,0.29723706,111180.0,111170.0,0.23665634]
[1752097631256,0.29723706,111180.0,111170.0,0.25165634]
[1752097631432,0.29723706,111180.0,111170.0,0.23665634]
[1752097631660,0.29723706,111180.0,111170.0,0.5427193]
[1752097631891,0.30035706,111180.0,111170.0,0.19866591]
[1752097632091,0.30035706,111180.0,111170.0,0.20766114]
[1752097632525,0.30035706,111180.0,111170.0,0.19866591]
[1752097632923,0.29136288,111180.0,111170.0,0.19866591]
[1752097633333,0.28236846,111180.0,111170.0,0.19866591]
[1752097635535,0.27156737,111180.0,111170.0,0.19866591]
[1752097636313,0.27156737,111180.0,111170.0,0.20766114]
[1752097636508,0.30386737,111180.0,111170.0,0.20766114]
[1752097637721,0.29696171,111180.0,111170.0,0.22565119]
[1752097637932,0.28056171,111180.0,111170.0,0.21665629]
[1752097638135,0.28056171,111180.0,111170.0,0.22565136]
[1752097638365,0.28056171,111180.0,111170.0,0.21665629]
[1752097639072,0.28056171,111180.0,111170.0,0.20766114]
[1752097639201,0.28056171,111180.0,111170.0,0.19866591]
[1752097639614,0.28056171,111180.0,111170.0,0.20766114]
[1752097640585,0.28056171,111180.0,111170.0,0.21665629]
[1752097641630,0.28057171,111180.0,111170.0,0.21665629]
[1752097642413,0.28057171,111180.0,111170.0,0.19989503]
[1752097642652,0.28057171,111180.0,111170.0,0.21670876]
[1752097643553,0.28057171,111180.0,111170.0,0.20771361]
[1752097644176,0.10967734,111180.0,111170.0,0.22782333]
[1752097644374,0.11867176,111180.0,111170.0,0.23512859]
[1752097644580,0.10967734,111180.0,111170.0,0.23681815]
[1752097644927,0.1087998,111180.0,111170.0,0.22782341]
[1752097645129,0.10654685,111180.0,111170.0,0.26841807]
[1752097645437,0.11554111,111180.0,111170.0,0.26841915]
[1752097645639,0.10474026,111180.0,111170.0,0.26841915]
[1752097647938,0.10474026,111180.0,111170.0,0.57448211]
[1752097647939,0.1137346,111180.0,111170.0,0.57448211]
[1752097648187,0.10474026,111180.0,111170.0,0.57448211]
[1752097648349,0.10474026,111180.0,111170.0,0.57448184]
[1752097648768,0.10474026,111180.0,111170.0,0.55918184]
[1752097649402,0.1137346,111180.0,111170.0,0.57568184]
[1752097649765,0.1137346,111180.0,111170.0,0.26961888]
[1752097650207,0.29362306,111180.0,111170.0,0.26062422]
[1752097650405,0.30261748,111180.0,111170.0,0.26961896]
[1752097650605,0.1137346,111180.0,111170.0,0.26961896]
[1752097651071,0.12272902,111180.0,111170.0,0.25311896]
[1752097651291,0.10474026,111180.0,111170.0,0.26211362]
[1752097651620,0.10474026,111180.0,111170.0,0.27861362]
[1752097652245,0.10786026,111180.0,111170.0,0.26211362]
[1752097652596,0.10786026,111180.0,111170.0,0.27861362]
[1752097652818,0.10786026,111180.0,111170.0,0.5846183]
[1752097653016,0.08987175,111180.0,111170.0,0.5846183]
[1752097653213,0.10489969,111180.0,111170.0,0.5846183]
[1752097653429,0.10473969,111180.0,111170.0,0.5846183]
[1752097654659,0.10772969,111180.0,111170.0,0.5681183]
[1752097654872,0.02698155,111180.0,111170.0,0.58460618]
[1752097655078,0.18445573,111180.0,111170.0,0.58756618]
[1752097655333,0.17546155,111180.0,111170.0,0.58756618]
[1752097655539,0.15566676,111180.0,111170.0,0.58756618]
[1752097655756,0.15747369,111180.0,111170.0,0.56897573]
[1752097656607,0.15731369,111180.0,111170.0,0.56897573]
[1752097656868,0.02697954,111190.0,111180.0,0.20899074]
[1752097657094,0.18425299,111190.0,111180.0,0.56695784]
[1752097657537,0.40457861,111200.0,111190.0,0.19997895]
[1752097657538,0.43171661,111200.0,111190.0,0.19997895]
[1752097657769,0.57752661,111200.0,111190.0,0.23249349]
[1752097658174,0.57736661,111200.0,111190.0,0.55053909]
[1752097658400,0.24870905,111200.0,111190.0,0.55022455]
[1752097658610,0.40746177,111200.0,111190.0,0.55022455]
[1752097658811,0.40834177,111200.0,111190.0,0.55022455]
[1752097659986,0.39922905,111200.0,111190.0,0.54719455]
[1752097660195,0.58807788,111200.0,111190.0,0.54719455]
[1752097660427,0.59707068,111200.0,111190.0,0.54599455]
[1752097660846,0.59707068,111200.0,111190.0,0.55481619]
[1752097661491,0.39922905,111200.0,111190.0,0.55481619]
[1752097662153,0.40822177,111200.0,111190.0,0.55481619]
[1752097662353,0.40822177,111200.0,111190.0,0.55787619]
[1752097662999,0.35822177,111200.0,111190.0,0.55787619]
[1752097663417,0.18272402,111200.0,111190.0,0.55787619]
[1752097663626,0.34886906,111200.0,111190.0,0.55787619]
[1752097664041,0.35786105,111200.0,111190.0,0.55787619]
[1752097664254,0.35786097,111200.0,111190.0,0.55787619]
[1752097664685,0.35774097,111200.0,111190.0,0.55787619]
[1752097664932,0.18272385,111200.0,111190.0,0.55787619]
[1752097665143,0.33088385,111200.0,111190.0,0.55787619]
[1752097665351,0.33088377,111200.0,111190.0,0.55787619]
[1752097665587,0.1737317,111200.0,111190.0,0.98931312]
[1752097665797,0.3218917,111200.0,111190.0,0.98931312]
[1752097666237,0.002,111200.0,111190.0,1.05385397]
[1752097666441,0.15016,111200.0,111190.0,1.05385397]
[1752097666659,0.14916,111200.0,111190.0,1.00385397]
[1752097667360,0.13828261,111200.0,111190.0,1.02061524]
[1752097667786,0.13828261,111200.0,111190.0,1.02261524]
[1752097669195,0.01838148,111220.0,111210.0,0.20896519]
[1752097669405,0.01838148,111220.0,111210.0,0.57221045]
[1752097669406,0.16630164,111220.0,111210.0,0.57221045]
[1752097669838,0.18428352,111220.0,111210.0,0.57221045]
[1752097670026,0.36410729,111220.0,111210.0,0.56321902]
[1752097670221,0.37309847,111220.0,111210.0,0.56321902]
[1752097670463,0.37309847,111220.0,111210.0,0.57221045]
[1752097670464,0.37314537,111220.0,111210.0,0.57221045]
[1752097670629,0.37314537,111220.0,111210.0,0.56321902]
[1752097670824,0.1933216,111220.0,111210.0,0.56321902]
[1752097671025,0.18433042,111220.0,111210.0,0.57221045]
[1752097671223,0.03641042,111220.0,111210.0,0.57221045]
[1752097671424,0.1661883,111220.0,111210.0,0.57221045]
[1752097671644,0.15719752,111220.0,111210.0,0.57527045]
[1752097671889,0.1482069,111220.0,111210.0,0.57527045]
[1752097672040,0.16618838,111220.0,111210.0,0.57527045]
[1752097673072,0.15719752,111220.0,111210.0,0.57527045]
[1752097673272,0.1661883,111220.0,111210.0,0.57527045]
[1752097674793,0.17517924,111220.0,111210.0,0.57527045]
[1752097675167,0.1661883,111220.0,111210.0,0.57527045]
[1752097675322,0.1661883,111220.0,111210.0,0.26927789]
[1752097675531,0.1661883,111220.0,111210.0,0.57527045]
[1752097677233,0.17517924,111220.0,111210.0,0.57527045]
[1752097677661,0.18417026,111220.0,111210.0,0.57527045]
[1752097677863,0.18417026,111220.0,111210.0,0.26927789]
[1752097678003,0.18417026,111220.0,111210.0,0.57221045]
[1752097679730,0.37298521,111220.0,111210.0,0.57221045]
[1752097679958,0.37298521,111220.0,111210.0,0.56321902]
[1752097680174,0.37298521,111220.0,111210.0,0.54821902]
[1752097680379,0.19316144,111220.0,111210.0,0.55721045]
[1752097680619,0.18417026,111220.0,111210.0,0.57341045]
[1752097681036,0.19316136,111220.0,111210.0,0.57341045]
[1752097681654,0.18417026,111220.0,111210.0,0.57341045]
[1752097682486,0.17517924,111220.0,111210.0,0.57341045]
[1752097683305,0.17517924,111220.0,111210.0,0.26741789]
[1752097683476,0.17517924,111220.0,111210.0,0.57341045]
[1752097683781,0.17517924,111220.0,111210.0,0.55721045]
[1752097684345,0.1661883,111220.0,111210.0,0.55721045]
[1752097685280,0.15719752,111220.0,111210.0,0.55721045]
[1752097685482,0.15719752,111220.0,111210.0,0.26741789]
[1752097685700,0.0004469,111220.0,111210.0,1.22246301]
[1752097685906,0.15603736,111220.0,111210.0,1.22246301]
[1752097686112,0.0004469,111220.0,111210.0,1.47509079]
[1752097686317,0.1469669,111220.0,111210.0,1.47509079]
[1752097686642,0.14688,111230.0,111220.0,3.2591872]
[1752097686921,0.14688,111230.0,111220.0,2.20183696]
[1752097687091,0.14688,111230.0,111220.0,2.04168096]
[1752097687314,0.0004,111230.0,111220.0,2.04168096]
[1752097687511,0.1468,111230.0,111220.0,2.06842678]
[1752097687917,0.0004,111230.0,111220.0,1.99200278]
[1752097688325,0.0004,111230.0,111220.0,2.33476714]
[1752097689085,0.0004,111230.0,111220.0,2.44507743]
[1752097689288,0.0004,111230.0,111220.0,2.44707743]
[1752097690305,0.0004,111230.0,111220.0,2.33976714]
[1752097690509,0.0004,111230.0,111220.0,2.44707743]
[1752097691156,0.0004,111230.0,111220.0,2.32304151]
[1752097691357,0.0004,111230.0,111220.0,2.33975563]
[1752097693046,0.0004,111230.0,111220.0,1.02623578]
[1752097693281,0.02151962,111230.0,111220.0,0.90124885]
[1752097693490,0.08089009,111230.0,111220.0,0.52551241]
[1752097693690,0.08089009,111230.0,111220.0,0.53450303]
[1752097693911,0.23598105,111230.0,111220.0,0.02171412]
[1752097694116,0.32516503,111230.0,111220.0,0.02171972]
[1752097694325,0.63115759,111230.0,111220.0,0.02171972]
[1752097694822,0.63115759,111230.0,111220.0,0.01971972]
[1752097695023,0.63115759,111230.0,111220.0,0.01671972]
[1752097695576,0.63115759,111230.0,111220.0,0.01771972]
[1752097696984,0.63115759,111230.0,111220.0,0.01671972]
[1752097699415,0.65816959,111230.0,111220.0,0.01671972]
[1752097701184,0.65916959,111230.0,111220.0,0.01671972]
[1752097702702,0.65915959,111230.0,111220.0,0.01671972]
[1752097703013,0.21791645,111210.0,111200.0,0.54683139]
[1752097703225,0.35526519,111210.0,111200.0,0.56367229]
[1752097703461,0.34627368,111210.0,111200.0,0.56367229]
[1752097703671,0.33728193,111210.0,111200.0,0.56367229]
[1752097704290,0.33728193,111210.0,111200.0,0.57366485]
[1752097704502,0.33728193,111210.0,111200.0,0.56467229]
[1752097704718,0.33728193,111210.0,111200.0,0.57366477]
[1752097704938,0.33728193,111210.0,111200.0,0.56667229]
[1752097706010,0.33728193,111210.0,111200.0,0.57566485]
[1752097706265,0.33629193,111210.0,111200.0,0.57566485]
[1752097706472,0.17543517,111210.0,111200.0,0.58661685]
[1752097706682,0.17543517,111210.0,111200.0,0.58661693]
[1752097706914,0.03011509,111210.0,111200.0,0.58465644]
[1752097707125,0.17519509,111210.0,111200.0,0.58465644]
[1752097707343,0.36402694,111210.0,111200.0,0.55767933]
[1752097707804,0.36402694,111210.0,111200.0,0.56667181]
[1752097709181,0.184187,111210.0,111200.0,0.56863181]
[1752097709384,0.17519509,111210.0,111200.0,0.56863181]
[1752097710081,0.17519509,111210.0,111200.0,0.55963933]
[1752097710273,0.17519509,111210.0,111200.0,0.56863181]
[1752097710709,0.17519509,111210.0,111200.0,0.56863173]
[1752097710913,0.17519509,111210.0,111200.0,0.56667173]
[1752097711122,0.17519509,111210.0,111200.0,0.56667181]
[1752097711326,0.16620326,111210.0,111200.0,0.58465653]
[1752097711531,0.16620326,111210.0,111200.0,0.57566421]
[1752097711741,0.16620326,111210.0,111200.0,0.58465653]
[1752097712017,0.16620326,111210.0,111200.0,0.58661653]
[1752097712329,0.17519452,111210.0,111200.0,0.57762389]
[1752097712759,0.16620277,111210.0,111200.0,0.57762389]
[1752097712881,0.17519444,111210.0,111200.0,0.57762389]
[1752097713083,0.18418619,111210.0,111200.0,0.56863157]
[1752097713287,0.18418619,111210.0,111200.0,0.57762389]
[1752097713716,0.18418619,111210.0,111200.0,0.56863157]
[1752097714185,0.18418619,111210.0,111200.0,0.57762389]
[1752097714330,0.17519436,111210.0,111200.0,0.58661612]
[1752097715897,0.17419436,111210.0,111200.0,0.58661612]
[1752097716099,0.17419436,111210.0,111200.0,0.89260868]
[1752097716539,0.16520277,111210.0,111200.0,0.89260868]
[1752097716696,0.17419444,111210.0,111200.0,0.58661612]
[1752097716896,0.16520277,111210.0,111200.0,0.58661612]
[1752097717767,0.17419436,111210.0,111200.0,0.58661612]
[1752097719072,0.17419428,111210.0,111200.0,0.58661612]
[1752097719477,0.18318603,111210.0,111200.0,0.58661612]
[1752097719692,0.17419428,111210.0,111200.0,0.58661612]
[1752097719825,0.18318603,111210.0,111200.0,0.57762389]
[1752097721139,0.17419428,111210.0,111200.0,0.58661612]
[1752097721667,0.18318603,111210.0,111200.0,0.58661612]
[1752097722003,0.18318603,111210.0,111200.0,0.57762389]
[1752097722221,0.19217794,111210.0,111200.0,0.87462413]
[1752097722401,0.19317794,111210.0,111200.0,0.87462413]
[1752097723003,0.18418603,111210.0,111200.0,0.87462413]
[1752097723206,0.19317794,111210.0,111200.0,0.87462413]
[1752097723406,0.18418603,111210.0,111200.0,0.87462413]
[1752097723736,0.19317794,111210.0,111200.0,0.56863157]
[1752097723907,0.19317794,111210.0,111200.0,0.55963917]
[1752097724567,0.1662031,111210.0,111200.0,0.56863189]
[1752097724766,0.17519501,111210.0,111200.0,0.56863189]
[1752097724943,0.17519436,111210.0,111200.0,0.56863189]
[1752097725185,0.19317802,111210.0,111200.0,0.88361693]
[1752097725584,0.19176986,111210.0,111200.0,0.88361693]
[1752097726441,0.19176986,111210.0,111200.0,0.88367237]
[1752097726745,0.18967986,111210.0,111200.0,0.88367237]
[1752097727340,0.18967978,111210.0,111200.0,0.89266469]
[1752097727546,0.18967978,111210.0,111200.0,0.88367237]
[1752097727772,0.18968043,111210.0,111200.0,0.88367237]
[1752097728185,0.34973083,111210.0,111200.0,0.86568749]
[1752097728400,0.34973083,111210.0,111200.0,0.87467997]
[1752097728599,0.34973115,111210.0,111200.0,0.55969501]
[1752097728809,0.34973115,111210.0,111200.0,0.56868749]
[1752097729015,0.34973115,111210.0,111200.0,0.56868757]
[1752097729828,0.34973115,111210.0,111200.0,0.55969501]
[1752097729971,0.34973115,111210.0,111200.0,0.56868757]
[1752097730407,0.34973115,111210.0,111200.0,0.57768005]
[1752097730603,0.34973115,111210.0,111200.0,0.56868757]
[1752097731061,0.3407394,111210.0,111200.0,0.55969501]
[1752097731263,0.3407394,111210.0,111200.0,0.56868757]
[1752097732147,0.3407394,111210.0,111200.0,0.57768005]
[1752097732352,0.15190715,111210.0,111200.0,0.58667237]
[1752097732559,0.16089914,111210.0,111200.0,0.58667245]
[1752097733000,0.34073908,111210.0,111200.0,0.56868757]
[1752097733202,0.34073908,111210.0,111200.0,0.56672757]
[1752097733411,0.16690715,111210.0,111200.0,0.56672757]
[1752097733615,0.34073908,111210.0,111200.0,0.56672757]
[1752097733828,0.16089914,111210.0,111200.0,0.56672757]
[1752097734028,0.34073908,111210.0,111200.0,0.56672757]
[1752097734236,0.34073908,111210.0,111200.0,0.55773501]
[1752097734487,0.34073908,111210.0,111200.0,0.57572005]
[1752097734692,0.16089914,111210.0,111200.0,0.58680245]
[1752097734800,0.16089914,111210.0,111200.0,0.57781005]
[1752097735448,0.34073908,111210.0,111200.0,0.57781005]
[1752097736025,0.33174709,111210.0,111200.0,0.57781005]
[1752097736237,0.36204709,111210.0,111200.0,0.01989634]
[1752097737357,0.75947658,111210.0,111200.0,0.01989634]
[1752097737785,1.06546914,111210.0,111200.0,0.01989634]
[1752097738025,0.75947658,111210.0,111200.0,0.01989634]
[1752097738661,0.78649558,111210.0,111200.0,0.01789634]
[1752097738880,0.78649558,111210.0,111200.0,0.01689634]
[1752097739727,1.09248814,111210.0,111200.0,0.01689634]
[1752097739931,0.78649558,111210.0,111200.0,0.01689634]
[1752097740379,0.78549558,111210.0,111200.0,0.01689634]
[1752097740595,0.48050302,111210.0,111200.0,0.01689634]
[1752097740815,0.78649558,111210.0,111200.0,0.01689634]
[1752097745341,0.48050302,111210.0,111200.0,0.01689634]
[1752097745496,0.78649558,111210.0,111200.0,0.01689634]
[1752097745912,1.09248814,111210.0,111200.0,0.01687328]
[1752097746309,0.78649558,111210.0,111200.0,0.01687328]
[1752097746950,1.09248814,111210.0,111200.0,0.01687328]
[1752097747772,1.30844814,111210.0,111200.0,0.01687328]